bitfinex-derivatives/quotes_BTCF0:USTF0_20250722
["timestamp","ask_amount","ask_price","bid_price","bid_amount"]
[1753206847528,0.1676687,119230.0,119220.0,1.66223234]
[1753206848331,0.1676687,119230.0,119220.0,1.63832541]
[1753206848630,0.1676687,119230.0,119220.0,1.66223177]
[1753206851134,0.1676687,119230.0,119220.0,1.23623936]
[1753206851434,0.1676687,119230.0,119220.0,1.66223177]
[1753206852834,0.1828887,119230.0,119220.0,1.23623936]
[1753206854137,0.1828887,119230.0,119220.0,1.66223177]
[1753206856839,0.1828887,119230.0,119220.0,1.08083177]
[1753206857033,0.1828887,119230.0,119220.0,1.66375177]
[1753206857340,0.1828887,119230.0,119220.0,1.23775936]
[1753206857541,0.1828887,119230.0,119220.0,1.66375177]
[1753206858034,0.66228111,119230.0,119220.0,0.65483936]
[1753206858239,0.75952708,119230.0,119220.0,1.23767936]
[1753206858739,0.75952708,119230.0,119220.0,0.65483936]
[1753206858932,0.75101708,119230.0,119220.0,1.23927936]
[1753206859338,0.75101708,119230.0,119220.0,1.23827936]
[1753206859531,0.75201708,119230.0,119220.0,1.23827936]
[1753206860136,0.75201708,119230.0,119220.0,1.23823936]
[1753206860335,0.75301708,119230.0,119220.0,1.23823936]
[1753206860838,0.75301708,119230.0,119220.0,1.214333]
[1753206861039,0.76152708,119230.0,119220.0,0.46225]
[1753206861239,0.82189444,119230.0,119220.0,1.04677]
[1753206861640,0.76152708,119230.0,119220.0,1.04677]
[1753206861843,0.76152708,119230.0,119220.0,1.04709]
[1753206862046,0.76152708,119230.0,119220.0,1.2147729]
[1753206862846,0.76152708,119230.0,119220.0,1.04709]
[1753206863144,0.76152708,119230.0,119220.0,1.2147729]
[1753206863649,0.76152708,119230.0,119220.0,1.04709]
[1753206863838,0.33553467,119230.0,119220.0,1.2144929]
[1753206864237,0.75301708,119230.0,119220.0,1.23844455]
[1753206864544,0.75301708,119230.0,119220.0,1.23840455]
[1753206864749,0.75301708,119230.0,119220.0,1.23868455]
[1753206864938,0.75301708,119230.0,119220.0,1.2147329]
[1753206869346,0.26913467,119230.0,119220.0,1.64072531]
[1753206869643,0.23336467,119230.0,119220.0,1.64004531]
[1753206869845,0.1696688,119230.0,119220.0,1.66398581]
[1753206870144,0.002,119230.0,119220.0,1.97647142]
[1753206870349,0.002,119230.0,119220.0,1.99895122]
[1753206870545,0.82134344,119260.0,119250.0,0.1676407]
[1753206870546,0.11083267,119260.0,119250.0,0.1676407]
[1753206870748,0.47165156,119260.0,119250.0,0.8767707]
[1753206871049,0.47165156,119260.0,119250.0,1.1967707]
[1753206871243,0.17828816,119260.0,119250.0,0.67932579]
[1753206871439,0.01845483,119260.0,119250.0,1.6894382]
[1753206871645,0.2517775,119260.0,119250.0,1.6894382]
[1753206872350,0.2517775,119260.0,119250.0,1.26344579]
[1753206872941,0.2527775,119260.0,119250.0,1.26344579]
[1753206873650,0.0851508,119260.0,119250.0,1.26344579]
[1753206873847,0.0851508,119260.0,119250.0,1.6894382]
[1753206874041,0.2527775,119260.0,119250.0,1.6894382]
[1753206874240,0.2527775,119260.0,119250.0,0.67932579]
[1753206874445,0.2527775,119260.0,119250.0,1.26308579]
[1753206874641,0.2527775,119260.0,119250.0,1.6890782]
[1753206875252,0.2527775,119260.0,119250.0,1.1053182]
[1753206875450,0.2527775,119260.0,119250.0,1.6890382]
[1753206877152,0.77242991,119260.0,119250.0,0.51168509]
[1753206877355,0.78136991,119260.0,119250.0,1.26296579]
[1753206877554,0.78136991,119260.0,119250.0,0.67932579]
[1753206877746,0.78136991,119260.0,119250.0,1.26268579]
[1753206879659,0.78136991,119260.0,119250.0,0.67932579]
[1753206879860,0.78136991,119260.0,119250.0,1.26268579]
[1753206880358,0.77242991,119260.0,119250.0,1.26268579]
[1753206881159,0.77242991,119260.0,119250.0,0.67932579]
[1753206881360,0.77242991,119260.0,119250.0,1.26268579]
[1753206881660,0.75397508,119260.0,119250.0,1.26268579]
[1753206881862,0.32798267,119260.0,119250.0,1.26268579]
[1753206882056,0.23432267,119260.0,119250.0,1.6886782]
[1753206884162,0.003,119260.0,119250.0,1.6886782]
[1753206884363,0.23432267,119260.0,119250.0,1.26268579]
[1753206885654,0.003,119260.0,119250.0,1.6886782]
[1753206885854,0.003,119260.0,119250.0,1.71259456]
[1753206887158,0.0418944,119300.0,119290.0,0.1675705]
[1753206887354,0.3964935,119300.0,119290.0,0.35]
[1753206887662,0.3964935,119300.0,119280.0,0.01668404]
[1753206887663,0.2708245,119290.0,119280.0,0.01668404]
[1753206887863,0.69773288,119290.0,119280.0,0.55428264]
[1753206888163,0.69773288,119290.0,119280.0,1.13884254]
[1753206888567,0.69773288,119290.0,119280.0,0.55428254]
[1753206888859,0.69773288,119290.0,119280.0,1.13880254]
[1753206888860,0.10415597,119290.0,119280.0,1.13880254]
[1753206889160,0.07224614,119300.0,119290.0,0.1675845]
[1753206889366,0.06483597,119300.0,119290.0,0.96357691]
[1753206889563,0.06383597,119300.0,119290.0,0.96357691]
[1753206889866,0.05377,119300.0,119290.0,0.96357691]
[1753206890060,0.05277,119300.0,119290.0,0.96357691]
[1753206890360,0.2294905,119300.0,119290.0,0.96357691]
[1753206890568,0.06192,119300.0,119290.0,0.96357691]
[1753206890864,0.06192,119300.0,119290.0,0.96457691]
[1753206891363,0.06192,119300.0,119290.0,0.5385845]
[1753206891364,0.2499505,119300.0,119290.0,0.5385845]
[1753206891556,0.69780291,119300.0,119290.0,0.5385845]
[1753206891752,0.69780291,119300.0,119290.0,1.1242245]
[1753206891753,0.69871888,119300.0,119290.0,1.1242245]
[1753206892864,0.27272647,119300.0,119290.0,1.1242245]
[1753206895371,0.27272647,119300.0,119290.0,0.5385845]
[1753206895572,0.27272647,119300.0,119290.0,1.1244245]
[1753206896372,0.27272647,119300.0,119290.0,1.1241045]
[1753206897470,0.69871888,119300.0,119290.0,1.1241045]
[1753206898071,0.69871888,119300.0,119290.0,0.59652]
[1753206898478,0.69871888,119300.0,119290.0,0.011]
[1753206899378,0.27272647,119300.0,119290.0,0.011]
[1753206899572,0.69871888,119300.0,119290.0,0.011]
[1753206900473,1.28383888,119300.0,119290.0,0.011]
[1753206900781,0.2708244,119290.0,119280.0,0.01668404]
[1753206900965,0.69773278,119290.0,119280.0,0.31668404]
[1753206901363,0.86539678,119290.0,119280.0,0.3]
[1753206901565,0.99143514,119290.0,119280.0,0.3]
[1753206903481,0.99143514,119290.0,119280.0,0.301]
[1753206903675,0.82377114,119290.0,119280.0,0.301]
[1753206904177,0.82777114,119290.0,119280.0,0.3]
[1753206907479,0.82777114,119290.0,119280.0,0.4675985]
[1753206907685,0.82777114,119290.0,119280.0,0.3]
[1753206909279,0.40177873,119290.0,119280.0,0.3]
[1753206909480,0.82777114,119290.0,119280.0,0.3]
[1753206913175,1.42142755,119290.0,119280.0,0.13401355]
[1753206913374,0.1676125,119270.0,119260.0,0.2095322]
[1753206913581,0.67622088,119270.0,119260.0,0.41789346]
[1753206913775,0.27417847,119270.0,119260.0,0.43411346]
[1753206914080,0.70017088,119270.0,119260.0,0.43716346]
[1753206914489,0.70017088,119270.0,119260.0,0.39525706]
[1753206914672,0.70017088,119270.0,119260.0,0.39625706]
[1753206914872,0.70017088,119270.0,119260.0,0.3723358]
[1753206915277,0.27417847,119270.0,119260.0,0.3723358]
[1753206915473,0.70017088,119270.0,119260.0,0.3723358]
[1753206916682,0.70117088,119270.0,119260.0,0.3723358]
[1753206916879,0.70217088,119270.0,119260.0,0.3713358]
[1753206917483,0.70217088,119270.0,119260.0,0.20371]
[1753206918280,0.70217088,119270.0,119260.0,0.20066]
[1753206919487,0.70217088,119270.0,119260.0,0.3682865]
[1753206919681,0.70217088,119270.0,119260.0,0.20066]
[1753206920189,0.70217088,119270.0,119260.0,0.3682866]
[1753206920687,0.70217088,119270.0,119260.0,0.3713366]
[1753206920879,0.27617847,119270.0,119260.0,0.3713366]
[1753206921080,0.27617847,119270.0,119260.0,0.4037366]
[1753206921280,0.27617847,119270.0,119260.0,0.82972901]
[1753206921686,0.27617847,119270.0,119260.0,0.4037366]
[1753206922388,0.27517847,119270.0,119260.0,0.4047366]
[1753206922688,0.27417847,119270.0,119260.0,0.4047366]
[1753206924191,0.27417847,119270.0,119260.0,0.42874906]
[1753206924689,0.70017088,119270.0,119260.0,1.01154906]
[1753206924890,0.70017088,119270.0,119260.0,0.84392246]
[1753206925091,0.70017088,119270.0,119260.0,0.81152246]
[1753206925479,0.70117088,119270.0,119260.0,1.00110906]
[1753206925687,0.70117088,119270.0,119260.0,1.01054906]
[1753206925888,0.27517847,119270.0,119260.0,1.01054906]
[1753206926084,0.70117088,119270.0,119260.0,1.01054906]
[1753206926489,0.70117088,119270.0,119260.0,0.42774906]
[1753206927388,0.27517847,119270.0,119260.0,0.42774906]
[1753206927589,0.70117088,119270.0,119260.0,0.42774906]
[1753206928197,0.70217088,119270.0,119260.0,0.42774906]
[1753206928799,0.27617847,119270.0,119260.0,0.42774906]
[1753206928997,0.70217088,119270.0,119260.0,0.42774906]
[1753206929192,0.70217088,119270.0,119260.0,0.26012246]
[1753206929393,0.82775307,119270.0,119260.0,0.42773866]
[1753206929592,0.82775307,119270.0,119260.0,0.26012246]
[1753206929795,0.82775307,119270.0,119260.0,0.20401246]
[1753206929993,0.8268371,119270.0,119260.0,0.20401246]
[1753206930196,0.82775307,119270.0,119260.0,0.20401246]
[1753206931188,0.82775307,119270.0,119260.0,0.18]
[1753206932591,0.82675307,119270.0,119260.0,0.181]
[1753206932993,0.88712043,119270.0,119260.0,0.181]
[1753206933197,0.88712043,119270.0,119260.0,0.18]
[1753206933497,1.05581643,119270.0,119260.0,0.18]
[1753206933698,0.88812043,119270.0,119260.0,0.18]
[1753206934199,0.82775307,119270.0,119260.0,0.18]
[1753206936103,1.41127307,119270.0,119260.0,0.18]
[1753206938901,0.82775307,119270.0,119260.0,0.18]
[1753206939107,1.41107307,119270.0,119260.0,0.18]
[1753206939303,0.82775307,119270.0,119260.0,0.18]
[1753206939504,0.8268371,119270.0,119260.0,0.20776]
[1753206939708,1.41103307,119270.0,119260.0,0.24156]
[1753206940109,0.82775307,119270.0,119260.0,0.24156]
[1753206940307,0.40084469,119270.0,119260.0,0.65938501]
[1753206940509,0.12758219,119270.0,119260.0,1.56254501]
[1753206940703,0.0002,119280.0,119270.0,0.2324785]
[1753206940908,0.26130395,119290.0,119280.0,0.2234945]
[1753206941107,0.26110395,119290.0,119280.0,1.62197691]
[1753206941309,0.38706281,119290.0,119280.0,1.62197691]
[1753206941510,0.40994281,119290.0,119280.0,1.62197691]
[1753206941911,0.40994281,119290.0,119280.0,1.1959845]
[1753206942107,0.41944281,119290.0,119280.0,1.26225687]
[1753206942312,0.46261281,119290.0,119280.0,1.26213667]
[1753206943211,0.88860522,119290.0,119280.0,1.09033237]
[1753206943511,0.88860522,119290.0,119280.0,1.25791667]
[1753206943702,0.88860522,119290.0,119280.0,1.25891667]
[1753206945313,0.88860522,119290.0,119280.0,0.67551667]
[1753206945513,0.88860522,119290.0,119280.0,1.25855667]
[1753206946314,0.86963707,119290.0,119280.0,1.25855667]
[1753206946517,0.86963707,119290.0,119280.0,1.2757504]
[1753206947008,0.44364466,119290.0,119280.0,1.2757504]
[1753206947212,0.18149886,119290.0,119280.0,1.70596281]
[1753206947418,0.32618886,119290.0,119280.0,1.70596281]
[1753206947714,0.15861886,119290.0,119280.0,1.70596281]
[1753206948117,0.32618886,119290.0,119280.0,1.70596281]
[1753206949317,0.32618886,119290.0,119280.0,1.12292281]
[1753206949517,0.34906886,119290.0,119280.0,1.70844281]
[1753206949712,0.35856886,119290.0,119280.0,1.70844281]
[1753206950218,0.35856886,119290.0,119280.0,1.12292281]
[1753206950517,0.40173886,119290.0,119280.0,1.70820281]
[1753206950821,0.40173886,119290.0,119280.0,1.2822104]
[1753206952818,0.40173886,119290.0,119280.0,1.70820281]
[1753206954916,0.46210622,119290.0,119280.0,1.70820281]
[1753206955619,0.46210622,119290.0,119280.0,1.2822104]
[1753206955819,0.46210622,119290.0,119280.0,1.70820281]
[1753206958310,0.40173886,119290.0,119280.0,1.70820281]
[1753206959319,0.40173886,119290.0,119280.0,1.12292281]
[1753206959520,0.46210622,119290.0,119280.0,1.70696281]
[1753206960516,0.82864724,119290.0,119280.0,0.6927104]
[1753206960720,0.82864724,119290.0,119280.0,1.2567504]
[1753206961521,0.82864724,119290.0,119280.0,1.2605804]
[1753206961722,0.82864724,119290.0,119280.0,1.2567504]
[1753206961914,0.82864724,119290.0,119280.0,1.2477804]
[1753206962114,0.40265483,119290.0,119280.0,1.2566304]
[1753206962921,0.82864724,119290.0,119280.0,1.2566304]
[1753206964021,0.82773127,119290.0,119280.0,0.6725901]
[1753206964226,0.40265483,119290.0,119280.0,1.2169501]
[1753206964411,0.82864724,119290.0,119280.0,1.2169501]
[1753206965121,0.82864724,119290.0,119280.0,1.24095231]
[1753206966925,0.82864724,119290.0,119280.0,1.2169501]
[1753206967325,0.40265483,119290.0,119280.0,1.2169501]
[1753206967623,0.82864724,119290.0,119280.0,1.2169501]
[1753206967823,0.40265483,119290.0,119280.0,1.2169501]
[1753206968021,0.82864724,119290.0,119280.0,1.2207801]
[1753206968524,0.40265483,119290.0,119280.0,1.2207801]
[1753206969226,0.40265483,119290.0,119280.0,1.64677251]
[1753206969923,0.40265483,119290.0,119280.0,1.2207801]
[1753206970323,0.40265483,119290.0,119280.0,1.2217801]
[1753206970728,0.40265483,119290.0,119280.0,1.2227801]
[1753206971429,0.46302219,119290.0,119280.0,1.2227801]
[1753206971931,0.34998483,119290.0,119280.0,1.64877251]
[1753206972528,0.35970483,119290.0,119280.0,1.64877251]
[1753206973528,0.37985483,119290.0,119280.0,1.64877251]
[1753206976631,0.34998483,119290.0,119280.0,1.64877251]
[1753206976822,0.32710483,119290.0,119280.0,1.64877251]
[1753206977019,0.32618886,119290.0,119280.0,1.64877251]
[1753206977225,0.32710483,119290.0,119280.0,1.64877251]
[1753206977733,0.35019483,119290.0,119280.0,1.64877251]
[1753206978933,0.32710483,119290.0,119280.0,1.64877251]
[1753206979831,0.35019483,119290.0,119280.0,1.64877251]
[1753206980131,0.32710483,119290.0,119280.0,1.64877251]
[1753206981127,0.35019483,119290.0,119280.0,1.64877251]
[1753206981834,0.32618836,119290.0,119280.0,1.64877251]
[1753206982030,0.12595886,119290.0,119280.0,1.64877251]
[1753206982231,0.26059286,119300.0,119290.0,0.2270195]
[1753206982432,0.26059286,119300.0,119290.0,0.99301191]
[1753206982433,0.26039286,119300.0,119290.0,0.99301191]
[1753206982634,0.38661363,119300.0,119290.0,0.99301191]
[1753206983438,0.21905813,119300.0,119290.0,0.99301191]
[1753206983735,0.38661363,119300.0,119290.0,0.99301191]
[1753206984238,0.38661363,119300.0,119290.0,0.99401191]
[1753206984833,0.18658813,119300.0,119290.0,0.99401191]
[1753206985040,0.06036736,119300.0,119290.0,0.99401191]
[1753206985434,0.34435096,119310.0,119300.0,0.1675555]
[1753206985639,0.36724096,119310.0,119300.0,1.56007791]
[1753206985840,0.37696096,119310.0,119300.0,1.56007791]
[1753206986137,0.33507446,119310.0,119300.0,1.56007791]
[1753206986732,0.33607446,119310.0,119300.0,1.56007791]
[1753206986932,0.33607446,119310.0,119300.0,1.1340855]
[1753206987138,0.33607446,119310.0,119300.0,1.56007791]
[1753206987337,0.33707446,119310.0,119300.0,1.56007791]
[1753206987539,0.35722446,119310.0,119300.0,1.1340855]
[1753206987837,0.37804446,119310.0,119300.0,1.1340855]
[1753206988039,0.80495284,119310.0,119300.0,0.5438955]
[1753206988242,0.31859307,119310.0,119300.0,1.1318155]
[1753206988434,0.31859307,119310.0,119300.0,1.1349255]
[1753206989133,0.31859307,119310.0,119300.0,1.1243741]
[1753206989134,0.74458548,119310.0,119300.0,1.1243741]
[1753206989333,0.74458548,119310.0,119300.0,1.1470841]
[1753206989539,0.74458548,119310.0,119300.0,1.1557141]
[1753206990235,0.31859307,119310.0,119300.0,1.1557141]
[1753206990441,0.74458548,119310.0,119300.0,1.1557141]
[1753206991443,0.31859307,119310.0,119300.0,1.1557141]
[1753206991641,0.74458548,119310.0,119300.0,1.1557141]
[1753206992542,0.31859307,119310.0,119300.0,1.1557141]
[1753206993939,0.07268597,119310.0,119300.0,1.17606985]
[1753206994136,0.23573717,119310.0,119300.0,1.60206226]
[1753206994744,0.23573717,119310.0,119300.0,1.1588241]
[1753206994939,0.23573717,119310.0,119300.0,1.60205643]
[1753206997047,0.2348212,119310.0,119300.0,1.60205643]
[1753206997346,0.27670717,119310.0,119300.0,1.60205643]
[1753206997547,0.27670717,119310.0,119300.0,1.15196542]
[1753206998246,0.27670717,119310.0,119300.0,1.1347255]
[1753207000742,0.27670717,119310.0,119300.0,0.37945]
[1753207000946,0.70269958,119310.0,119300.0,1.00458]
[1753207001342,0.27670717,119310.0,119300.0,1.00458]
[1753207001544,0.70269958,119310.0,119300.0,1.00458]
[1753207001743,0.70269958,119310.0,119300.0,1.1721351]
[1753207002149,0.70269958,119310.0,119300.0,1.00458]
[1753207003048,0.27670717,119310.0,119300.0,0.7757]
[1753207003250,0.70269958,119310.0,119300.0,1.0157]
[1753207003649,0.27670717,119310.0,119300.0,0.95404]
[1753207003851,0.70269958,119310.0,119300.0,0.97404]
[1753207004348,0.2098151,119300.0,119290.0,0.04482886]
[1753207004554,0.70047348,119300.0,119290.0,1.01708886]
[1753207004753,0.27448107,119300.0,119290.0,1.01708886]
[1753207004957,0.70047348,119300.0,119290.0,1.01708886]
[1753207005448,0.27448107,119300.0,119290.0,1.01708886]
[1753207005649,0.70047348,119300.0,119290.0,1.02354886]
[1753207005848,0.70047348,119300.0,119290.0,1.04816886]
[1753207006151,0.70047348,119300.0,119290.0,0.45044886]
[1753207006549,0.70047348,119300.0,119290.0,0.42582886]
[1753207006740,0.82547813,119300.0,119290.0,0.42582886]
[1753207007242,0.82547813,119300.0,119290.0,0.40886]
[1753207007446,0.82547813,119300.0,119290.0,0.40224]
[1753207008343,0.88584549,119300.0,119290.0,0.40224]
[1753207008547,0.46085308,119300.0,119290.0,0.40224]
[1753207008744,0.88684549,119300.0,119290.0,0.40224]
[1753207009054,0.46085308,119300.0,119290.0,0.40224]
[1753207009257,0.88684549,119300.0,119290.0,0.40224]
[1753207009554,0.88784549,119300.0,119290.0,0.40124]
[1753207010148,0.88784549,119300.0,119290.0,0.38]
[1753207010355,0.273579,119290.0,119280.0,0.06627237]
[1753207010653,0.88599413,119290.0,119280.0,0.36]
[1753207010956,1.48535413,119290.0,119280.0,0.36]
[1753207011357,1.48535413,119290.0,119280.0,0.37632]
[1753207012359,1.48535413,119290.0,119280.0,0.44464032]
[1753207012653,1.42509935,119290.0,119280.0,0.44564032]
[1753207013048,0.39974694,119290.0,119280.0,0.44564032]
[1753207013256,1.42481935,119290.0,119280.0,0.44564032]
[1753207014153,1.42481935,119290.0,119280.0,0.42932032]
[1753207014856,1.42581935,119290.0,119280.0,0.42932032]
[1753207015757,2.01947576,119290.0,119280.0,0.20554904]
[1753207015957,2.01947576,119290.0,119280.0,1e-07]
[1753207015958,2.07973054,119290.0,119280.0,1e-07]
[1753207016156,0.2098712,119260.0,119250.0,0.65878]
[1753207016353,0.69961361,119260.0,119250.0,1.02878]
[1753207016558,0.82455596,119260.0,119250.0,1.09458832]
[1753207016763,0.39856355,119260.0,119250.0,1.68820593]
[1753207017060,0.39856355,119260.0,119250.0,1.69173593]
[1753207017260,0.39856355,119260.0,119250.0,1.26774352]
[1753207018755,0.39856355,119260.0,119250.0,0.49906832]
[1753207018961,0.82547193,119260.0,119250.0,1.06300832]
[1753207019160,0.82547193,119260.0,119250.0,1.05736832]
[1753207019362,0.82547193,119260.0,119250.0,0.45904832]
[1753207019963,0.83401636,119260.0,119250.0,0.45904832]
[1753207020362,0.40802395,119260.0,119250.0,1.09521563]
[1753207020561,0.34789952,119260.0,119250.0,1.69257563]
[1753207020757,0.1676108,119260.0,119250.0,1.77638273]
[1753207020959,0.3060416,119270.0,119260.0,0.2226408]
[1753207021259,0.15609654,119270.0,119260.0,0.98739321]
[1753207021457,0.12597654,119270.0,119260.0,0.98739321]
[1753207021660,0.30031373,119280.0,119270.0,0.2226268]
[1753207021857,0.80199614,119280.0,119270.0,0.70902]
[1753207022158,0.9286141,119280.0,119270.0,0.70026]
[1753207022555,0.9286141,119280.0,119270.0,0.67564]
[1753207022754,0.9286141,119280.0,119270.0,0.07124]
[1753207023057,0.9296141,119280.0,119270.0,0.67072]
[1753207023555,0.9306141,119280.0,119270.0,0.67072]
[1753207023754,0.9306141,119280.0,119270.0,0.05]
[1753207023954,1.5297741,119280.0,119270.0,0.05]
[1753207024359,1.5287741,119280.0,119270.0,0.05]
[1753207024565,0.001,119280.0,119270.0,1.45048864]
[1753207024761,0.03032,119290.0,119280.0,0.2313727]
[1753207025066,0.03012,119290.0,119280.0,1.00736511]
[1753207025561,0.06395,119300.0,119290.0,0.1944487]
[1753207025763,0.06375,119300.0,119290.0,1.61627111]
[1753207025963,0.03012,119300.0,119290.0,1.20700428]
[1753207026165,0.03012,119300.0,119290.0,1.63299669]
[1753207026972,0.2219846,119300.0,119290.0,1.63299669]
[1753207027573,0.2219846,119300.0,119290.0,1.63599669]
[1753207027869,0.2219846,119300.0,119290.0,1.63999669]
[1753207028271,0.2219846,119300.0,119290.0,1.63599669]
[1753207028572,0.2219846,119300.0,119290.0,1.63899669]
[1753207028969,0.2316346,119300.0,119290.0,1.63899669]
[1753207029168,0.2316346,119300.0,119290.0,1.47142799]
[1753207029372,0.70064298,119300.0,119290.0,1.04190558]
[1753207029674,0.70064298,119300.0,119290.0,1.04090558]
[1753207029869,0.27465057,119300.0,119290.0,1.04090558]
[1753207030577,0.27465057,119300.0,119290.0,1.03990558]
[1753207031278,0.27465057,119300.0,119290.0,1.20747438]
[1753207031877,0.27465057,119300.0,119290.0,1.63346679]
[1753207032078,0.27465057,119300.0,119290.0,1.46589799]
[1753207032573,0.27465057,119300.0,119290.0,1.46289799]
[1753207032877,0.27465057,119300.0,119290.0,1.63146679]
[1753207033077,0.27465057,119300.0,119290.0,1.20547438]
[1753207033377,0.27465057,119300.0,119290.0,1.03790558]
[1753207034175,0.27465057,119300.0,119290.0,1.20547438]
[1753207034375,0.27465057,119300.0,119290.0,1.46389799]
[1753207035472,0.69972701,119300.0,119290.0,1.03790558]
[1753207035673,0.70064298,119300.0,119290.0,0.40560558]
[1753207036169,0.70064298,119300.0,119290.0,0.42876558]
[1753207036766,0.70064298,119300.0,119290.0,0.42676558]
[1753207036971,0.27465057,119300.0,119290.0,0.42776558]
[1753207037975,0.27465057,119300.0,119290.0,0.40460558]
[1753207038679,0.70064298,119300.0,119290.0,0.42776558]
[1753207038879,0.27465057,119300.0,119290.0,0.42776558]
[1753207039580,0.27465057,119300.0,119290.0,0.43717558]
[1753207041882,0.27465057,119300.0,119290.0,0.42045]
[1753207042283,0.70064298,119300.0,119290.0,0.42045]
[1753207043883,0.27465057,119300.0,119290.0,0.42045]
[1753207044083,0.70064298,119300.0,119290.0,0.42045]
[1753207044886,0.27465057,119300.0,119290.0,0.42045]
[1753207045479,0.70064298,119300.0,119290.0,0.42045]
[1753207048088,0.76089776,119300.0,119290.0,0.42045]
[1753207048286,0.27465057,119300.0,119290.0,0.42045]
[1753207049583,0.70064298,119300.0,119290.0,0.38788]
[1753207050284,1.29448298,119300.0,119290.0,0.38788]
[1753207050483,1.35473776,119300.0,119290.0,0.38788]
[1753207051390,1.35573776,119300.0,119290.0,0.38788]
[1753207052192,1.35573776,119300.0,119290.0,0.38688]
[1753207052700,1.35573776,119300.0,119290.0,0.41004]
[1753207053793,0.33590535,119300.0,119290.0,0.41945]
[1753207054095,0.33590535,119300.0,119290.0,1.01871111]
[1753207054294,0.33590535,119300.0,119290.0,0.85114241]
[1753207054596,0.33590535,119300.0,119290.0,0.41945]
[1753207054997,0.27565057,119300.0,119290.0,0.41945]
[1753207055300,0.27565057,119300.0,119290.0,0.42045]
[1753207056103,0.27465057,119300.0,119290.0,0.42615]
[1753207056697,0.27465057,119300.0,119290.0,0.42045]
[1753207056994,0.2737346,119300.0,119290.0,1.01971111]
[1753207057200,0.28315535,119300.0,119290.0,1.01971111]
[1753207057792,0.29280535,119300.0,119290.0,1.01971111]
[1753207057992,0.29280535,119300.0,119290.0,1.03687639]
[1753207058194,0.23255057,119300.0,119290.0,1.03687639]
[1753207059298,0.25513057,119300.0,119290.0,1.03687639]
[1753207059500,0.27552057,119300.0,119290.0,1.03687639]
[1753207061601,0.27552057,119300.0,119290.0,0.61088398]
[1753207061790,0.27552057,119300.0,119290.0,1.03687639]
[1753207062597,0.2746046,119300.0,119290.0,1.03687639]
[1753207062806,0.27552057,119300.0,119290.0,1.03687639]
[1753207065102,0.27087057,119300.0,119290.0,1.03687639]
[1753207065598,0.23255057,119300.0,119290.0,1.03687639]
[1753207066097,0.03012,119300.0,119290.0,1.03687639]
[1753207066299,0.1976746,119300.0,119290.0,1.03687639]
[1753207068401,0.2206346,119300.0,119290.0,0.61088398]
[1753207068609,0.2673446,119300.0,119290.0,1.03687639]
[1753207069401,0.09979,119300.0,119290.0,1.03687639]
[1753207069599,0.05308,119300.0,119290.0,1.03687639]
[1753207070612,0.2736486,119310.0,119300.0,0.2085646]
[1753207070908,0.40077069,119310.0,119300.0,1.61962701]
[1753207071498,0.43792069,119310.0,119300.0,1.61962701]
[1753207071903,0.43892069,119310.0,119300.0,1.61962701]
[1753207072103,0.49917547,119310.0,119300.0,1.61962701]
[1753207072706,0.49917547,119310.0,119300.0,1.62062701]
[1753207072904,0.43892069,119310.0,119300.0,1.62062701]
[1753207073507,0.43792069,119310.0,119300.0,1.62162701]
[1753207074206,0.44246069,119310.0,119300.0,1.62162701]
[1753207074406,0.44246069,119310.0,119300.0,1.02808]
[1753207074807,0.44246069,119310.0,119300.0,1.1956346]
[1753207075210,0.44246069,119310.0,119300.0,1.02808]
[1753207075508,0.44246069,119310.0,119300.0,1.1956346]
[1753207076710,0.44246069,119310.0,119300.0,1.02808]
[1753207077708,0.44246069,119310.0,119300.0,1.1956347]
[1753207078610,0.44246069,119310.0,119300.0,1.22008445]
[1753207081714,0.44246069,119310.0,119300.0,1.22008204]
[1753207082215,0.44246069,119310.0,119300.0,1.05252734]
[1753207082411,0.44246069,119310.0,119300.0,1.22008194]
[1753207083412,0.44246069,119310.0,119300.0,1.05252734]
[1753207083913,0.44246069,119310.0,119300.0,1.22008204]
[1753207084815,0.44246069,119310.0,119300.0,1.62162711]
[1753207085717,0.39121069,119310.0,119300.0,1.62162711]
[1753207085918,0.39121069,119310.0,119300.0,1.1956347]
[1753207086118,0.39121069,119310.0,119300.0,1.62162711]
[1753207086313,0.40077069,119310.0,119300.0,1.62162711]
[1753207086708,0.42218069,119310.0,119300.0,1.1956347]
[1753207086918,0.42218069,119310.0,119300.0,1.62162711]
[1753207087921,0.40077069,119310.0,119300.0,1.62162711]
[1753207089620,0.36733472,119310.0,119300.0,1.62162711]
[1753207091109,0.39221472,119310.0,119300.0,1.62162711]
[1753207092217,0.86927713,119310.0,119300.0,0.43187]
[1753207092417,0.8701931,119310.0,119300.0,0.39218]
[1753207092925,1.51996788,119310.0,119300.0,0.372]
[1753207093117,1.4597131,119310.0,119300.0,0.372]
[1753207093924,1.4597131,119310.0,119300.0,0.37]
[1753207094125,1.52002233,119310.0,119300.0,0.371]
[1753207094418,1.52006233,119310.0,119300.0,0.371]
[1753207094630,1.52206233,119310.0,119300.0,0.371]
[1753207095124,0.94751246,119310.0,119300.0,0.38625]
[1753207095419,1.4615931,119310.0,119300.0,0.41873]
[1753207095632,1.4625931,119310.0,119300.0,0.38525]
[1753207095928,1.4625931,119310.0,119300.0,0.37]
[1753207097028,1.53791246,119310.0,119300.0,0.37]
[1753207097228,1.4625931,119310.0,119300.0,0.37]
[1753207097630,1.4615931,119310.0,119300.0,0.37]
[1753207097930,1.53691246,119310.0,119300.0,0.37]
[1753207098127,1.4615931,119310.0,119300.0,0.37]
[1753207098326,1.53691246,119310.0,119300.0,0.37]
[1753207099029,1.53491246,119310.0,119300.0,0.37]
[1753207099526,1.53591246,119310.0,119300.0,0.37]
[1753207099728,1.4605931,119310.0,119300.0,0.37]
[1753207102238,1.4601131,119310.0,119300.0,0.37]
[1753207102533,1.53545425,119310.0,119300.0,0.37]
[1753207104933,1.4601131,119310.0,119300.0,0.37]
[1753207105136,1.52037914,119310.0,119300.0,0.37]
[1753207106136,1.52017914,119310.0,119300.0,0.37]
[1753207108834,0.2249828,119280.0,119270.0,0.01525]
[1753207109038,0.2755869,119270.0,119260.0,0.04773]
[1753207109233,0.2755869,119270.0,119260.0,0.05644]
[1753207109234,0.70249528,119270.0,119260.0,0.05644]
[1753207109541,0.82795222,119270.0,119260.0,0.05644]
[1753207109730,0.40195981,119270.0,119260.0,0.2240509]
[1753207110236,0.2417314,119280.0,119270.0,0.1947569]
[1753207110435,0.03204,119280.0,119270.0,1.02539931]
[1753207110739,0.1996228,119280.0,119270.0,1.04975462]
[1753207110940,0.1996228,119280.0,119270.0,1.02339931]
[1753207111239,0.2341428,119280.0,119270.0,1.02339931]
[1753207111440,0.2755728,119280.0,119270.0,0.42981]
[1753207111734,0.2755728,119280.0,119270.0,0.39816]
[1753207111735,0.70156521,119280.0,119270.0,0.39816]
[1753207111940,0.27648877,119280.0,119270.0,0.40016]